[Event "ESP-ch U2000 2024"]
[Site "Albacete"]
[Date "2024.08.27"]
[Round "1.1"]
[White "Costa Tejedor, Juan Carlos"]
[Black "Gutierrez Marco, Dario"]
[Result "0-1"]
[ECO "B49"]
[WhiteElo "1850"]
[BlackElo "1988"]
[Annotator "TA"]
[PlyCount "110"]
[EventDate "2024.08.27"]
[EventType "swiss"]
[EventCountry "ESP"]
[SourceTitle "playchess.com"]
[Source "ChessBase"]
[SourceQuality "1"]
[TimeControl "5400+30"]

{[%evp 14,110,34,0,16,-34,0,7,2,0,0,-6,89,69,128,126,133,128,123,0,102,101,235,0,0,-14,-23,-22,0,7,0,0,0,-33,-11,-152,-154,-121,-81,-55,-61,-77,-91,-86,-95,-93,-96,-98,-78,-148,-153,-307,-29,-102,-25,-233,-233,-218,-25,-166,-141,-148,0,0,0,0,0,0,0,0,0,0,0,0,0,0,0,-149,-149,-149,-149,-149,-149,-149,-149,-222,-156,-584,-583,-29979,-8,-29981,-29982,-29984,-29985,-29984,-29985,-29985,-29985]} 1. e4 {[%emt 0:00:02]} c5 {[%emt 0:00:06]} 2. Nf3 {[%emt 0:00:10]} e6 {[%emt 0:00:06]} 3. d4 {[%emt 0:00:16]} cxd4 {[%emt 0:00:06]} 4. Nxd4 {[%emt 0:00:04]} Nc6 {[%emt 0:00:08]} 5. Nc3 {[%emt 0:00:28]} Qc7 {[%emt 0:00:05]} 6. Be3 {[%emt 0:02:40]} a6 {[%emt 0:00:05]} 7. Be2 {[%emt 0:01:07]} b5 {[%emt 0:01:25]} 8. a3 {[%emt 0:01:29]} Bb7 {[%emt 0:02:48]} 9. Nb3 {[%emt 0:04:49]} (9. f4 $11) 9... d6 {[%emt 0:08:50]} 10. O-O {[%emt 0:00:44]} Nf6 {[%emt 0:00:33] The position is equal.} 11. f4 {[%emt 0:03:21]} Be7 {[%emt 0:02:58]} 12. Bf3 {[%emt 0:02:33]} e5 {[%emt 0:13:55]} (12... O-O $11) 13. Nd5 $16 {[%emt 0:13:11]} Nxd5 {[%emt 0:07:32]} (13... Qb8 $1 $14) 14. exd5 {[%emt 0:00:08]} Nd8 {[%emt 0:00:26]} 15. fxe5 {[%emt 0:02:45]} dxe5 {[%emt 0:01:28]} 16. Qe1 {[%emt 0:05:05]} (16. a4 $16 {Threatens to win with axb5.} Rb8 17. axb5 axb5 18. Be2) 16... Qxc2 {[%emt 0:13:36]} (16... O-O $1 $11) 17. Na5 {[%emt 0:00:23]} Bd6 {[%emt 0:00:18]} (17... O-O $16) 18. Bd4 $2 {[%emt 0:13:33]} (18. Rc1 $18 Qf5 19. Qh4) 18... Qc7 $11 {[%emt 0:02:58]} 19. Rc1 {[%emt 0:00:15]} Qe7 {[%emt 0:00:13]} 20. Bb6 {[%emt 0:14:47]} Rc8 {[%emt 0:06:20]} 21. Rxc8 {[%emt 0:24:27]} Bxc8 {[%emt 0:00:55]} 22. Qc3 {[%emt 0:02:48]} Bd7 {[%emt 0:02:04]} 23. Kh1 {[%emt 0:03:10]} O-O {[%emt 0:01:00]} 24. Rc1 {[%emt 0:01:53]} (24. Nc6 $11 Bxc6 25. dxc6) 24... e4 $17 {[%emt 0:01:12]} 25. Be2 {[%emt 0:02:00]} Be5 {[%emt 0:03:04]} 26. Bd4 {[%emt 0:00:41]} Re8 {[%emt 0:02:21]} 27. Bxe5 {[%emt 0:00:07]} Qxe5 {[%emt 0:00:06]} 28. Qxe5 {[%emt 0:00:30]} Rxe5 {[%emt 0:00:01]} 29. Nc6 {[%emt 0:00:47]} Nxc6 {[%emt 0:00:05]} 30. dxc6 {[%emt 0:00:02][%mdl 4096] Endgame. KRB-KRB} Bc8 {[%emt 0:00:06]} 31. Rd1 {[%emt 0:01:06]} ({White should try} 31. a4) 31... Kf8 {[%emt 0:00:45]} 32. c7 $2 {[%emt 0:00:34]} (32. g4 $17 {was worth a try.}) 32... Re8 $2 {[%emt 0:01:01]} (32... Rc5 $1 $19 33. a4 (33. Rd8+ $2 Ke7 $19) 33... bxa4 (33... Rxc7 $2 34. axb5 Rc2 35. Bf1 $19)) 33. Rd4 {[%emt 0:00:23]} (33. Rd8 Ke7 34. Rxe8+ Kxe8 $17) (33. a4 $1 $11 {remains equal.} bxa4 34. h4) 33... f5 {[%emt 0:00:20]} (33... e3 $6 34. Kg1 $11) (33... Be6 $17 {...Rc8 is the strong threat.} 34. a4 (34. Rxe4 Rc8 $11) 34... Rc8 35. axb5 axb5 36. Rxe4 (36. Rd8+ $2 Ke7 $17) 36... Rxc7) 34. Kg1 $2 {[%emt 0:00:17]} (34. a4 $11 bxa4 35. g3) 34... Ke7 $19 {[%emt 0:01:23]} 35. a4 {[%emt 0:00:06] [#]} bxa4 {[%emt 0:01:09]} ({Black should play} 35... Be6 $1 $19 {And now ...Rc8 would win.} 36. Bxb5 (36. axb5 $2 axb5 37. g4 g6 $19) 36... axb5 37. axb5 Bc8) 36. Rxa4 {[%emt 0:01:11]} (36. g3 $11 {and White stays safe.}) 36... Kd6 {[%emt 0:01:02]} 37. Bxa6 {[%emt 0:00:10][%cal Og2g4]} e3 {[%emt 0:03:06]} (37... g6 $17 38. Kf2 Bxa6 (38... Kxc7 39. Rc4+ Kb8 40. Rb4+ Ka7 41. Be2 $17) 39. Rxa6+ Kxc7 40. Ra7+ Kd6 41. Rxh7 Rb8) 38. Kf1 $11 {[%emt 0:00:47]} Re4 {[%emt 0:01:00]} (38... Kxc7 39. Bxc8 (39. Rc4+ Kb8 $11) 39... Kxc8 (39... Rxc8 40. Ke2 $18) 40. Ke2) 39. Ra5 {[%emt 0:00:39]} Re5 {[%emt 0:01:34]} 40. Ra3 {[%emt 0:00:17]} Bxa6+ {[%emt 0:01:10]} (40... Kxc7 $2 41. Rc3+ Kb6 42. Bxc8 $18) 41. Rxa6+ {[%emt 0:00:02]} Kxc7 {[%emt 0:00:00] KR-KR} 42. Ra7+ {[%emt 0:00:09]} Kd6 {[%emt 0:00:01] White must now prevent ...g5.} 43. Rxg7 {[%emt 0:00:11]} Rb5 {[%emt 0:00:00]} 44. Ke2 {[%emt 0:01:12]} f4 {[%emt 0:00:01]} 45. Rg4 {[%emt 0:01:09]} (45. Rxh7 $11 {keeps the balance.} Rxb2+ 46. Kf1) 45... Rxb2+ $17 {[%emt 0:00:09]} 46. Ke1 {[%emt 0:00:26]} Ke5 {[%emt 0:00:20]} 47. Rg5+ {[%emt 0:00:29]} Ke4 {[%emt 0:00:10] ( -> ...Rb1+). Black has more active pieces.} 48. Rg7 {[%emt 0:00:05]} h5 {[%emt 0:01:31]} 49. Re7+ {[%emt 0:00:20]} (49. Rg8 $17) 49... Kf5 {[%emt 0:00:07]} 50. Rf7+ $2 {[%emt 0:00:21] [#]} (50. Kf1 $17) 50... Ke5 $1 $19 {[%emt 0:00:27]} 51. g3 {[%emt 0:01:16]} Rxh2 $2 {[%emt 0:00:20]} (51... Ke4 {mates} 52. Kd1 e2+ (52... Rxh2 $2 53. Rf8 $19) (52... f3 $2 53. Re7+ Kd4 54. Rd7+ Kc5 55. Kc1 $19) 53. Ke1 Kf3 (53... f3 54. Kf2 $19) 54. Re7 Rb1+ (54... fxg3 55. Rf7+ Kg2 56. hxg3 $11) 55. Kd2 Rd1+ (55... fxg3 $2 56. Re3+ Kf2 57. Rxe2+ Kf1 58. Re5 $19) 56. Kc2 fxg3 (56... e1=N+ 57. Kxd1 fxg3 58. hxg3 $11) 57. Rf7+ Kg2 58. Re7 e1=Q (58... e1=R {leads to mate.} 59. Rg7 Kxh2 60. Rf7 g2 61. Rf2 Kh1 62. Rf5 g1=Q 63. Rxh5+ Kg2 64. Rg5+ Kf3 65. Rxg1 Rxg1 66. Kb3 Rb1+ 67. Kc4 Ke4 68. Kc5 Rg6 69. Kc4 Rc6#) 59. Rxe1 Rxe1 60. hxg3 Re3 61. Kd2 Rxg3 (61... Kxg3 62. Kxe3 h4 63. Ke4 h3 64. Ke3 h2 65. Ke4 h1=Q+ 66. Ke5 Qd1 67. Kf5 Qd7+ 68. Ke4 Qd6 69. Ke3 Qd5 70. Ke2 Qd4 71. Ke1 Kf3 72. Kf1 Qf2#) 62. Kd1 h4 63. Ke1 h3 (63... Re3+ 64. Kd2 Kf3 65. Kc2 h3 66. Kd2 h2 67. Kc2 h1=Q 68. Kd2 Qe1+ 69. Kc2 Qf2+ 70. Kd1 Re1#) 64. Kd2 h2 65. Ke1 h1=Q+ (65... h1=R+ 66. Kd2 Rh2 67. Ke1 Kh1 68. Kf1 Rg1#) 66. Kd2 Kh3 67. Ke2 Qh2+ 68. Kf1 Rg1#) 52. gxf4+ $2 {[%emt 0:00:30][%mdl 8192]} (52. Rxf4 $11 Kd5 53. Rb4) 52... Ke4 {[%emt 0:00:00] Black mates.} 53. f5 {[%emt 0:00:34]} Kf3 {[%emt 0:00:03][%cal Rh2h1]} 54. Kd1 {[%emt 0:00:17]} e2+ {[%emt 0:01:39]} 55. Kd2 {[%emt 0:00:39]} Rh1 {[%emt 0:00:06] A wild game.   Weighted Error Value: White=0.73/Black=0.51.  Loses game:     	White=3     	---        Missed win:     	White=1     	Black=3      Mistake:       	White=9     	Black=6      Inaccurate:     	White=2     	Black=3      OK:         	White=14    	Black=14     Best:        	White=5     	Black=2      Strong:       	---       	Black=1} 0-1

[Event "ESP-ch U2000 2024"]
[Site "Albacete"]
[Date "2024.08.27"]
[Round "1.2"]
[White "Perez Gonzalez, Daniel"]
[Black "Costa Iniesta, Prudencio"]
[Result "1-0"]
[ECO "A11"]
[WhiteElo "1981"]
[BlackElo "1844"]
[Annotator "TA"]
[PlyCount "53"]
[EventDate "2024.08.27"]
[EventType "swiss"]
[EventCountry "ESP"]
[SourceTitle "playchess.com"]
[Source "ChessBase"]
[SourceQuality "1"]
[TimeControl "5400+30"]

{[%evp 13,53,41,85,33,56,33,52,38,179,181,149,54,69,48,143,129,135,54,52,31,32,34,31,31,87,82,89,90,93,93,166,70,248,139,210,233,318,327,317,306,336,352]} 1. e4 {[%emt 0:00:06]} a6 {[%emt 0:00:18]} 2. d4 {[%emt 0:01:32]} b5 {[%emt 0:00:05]} 3. Nf3 {[%emt 0:01:03]} Bb7 {[%emt 0:00:01]} 4. Bd3 {[%emt 0:00:12]} e6 {[%emt 0:00:12]} 5. O-O {[%emt 0:00:53]} c5 {[%emt 0:00:19]} 6. c3 {[%emt 0:01:23]} Nf6 {[%emt 0:03:03]} 7. Qe2 {[%emt 0:04:24]} Nc6 {[%emt 0:03:07]} 8. a3 {[%emt 0:07:08]} (8. d5 $16 Ne7 9. dxe6 fxe6 10. a4) 8... Qb6 {[%emt 0:07:41]} 9. dxc5 {[%emt 0:08:22]} Bxc5 {[%emt 0:00:12]} 10. Nbd2 {[%emt 0:01:18] White is slightly better.} O-O {[%emt 0:04:28]} ({Black should play} 10... Qc7 $14) 11. e5 $1 $18 {[%emt 0:09:18]} Nd5 {[%emt 0:04:05] [#]} 12. Ne4 {[%emt 0:05:24]} ({Better is} 12. Bxh7+ $1 $16 Kxh7 13. Ng5+ Kg6 (13... Kg8 $2 14. Qh5 $18) 14. Ndf3 (14. Nde4 f5 $17)) 12... Be7 $14 {[%emt 0:03:43]} 13. a4 {[%emt 0:10:05]} f5 {[%emt 0:12:51]} ({Black should try} 13... Na5 $14) 14. exf6 $16 {[%emt 0:00:35]} Nxf6 {[%emt 0:01:44]} 15. Bg5 {[%emt 0:12:36]} (15. Nxf6+ $16 Bxf6 16. Ng5 (16. axb5 axb5 17. Rxa8 Rxa8 $16) 16... Bxg5 17. Bxg5) 15... b4 {[%emt 0:08:23]} 16. Nxf6+ {[%emt 0:03:47]} Bxf6 {[%emt 0:00:17]} 17. Qe4 {[%emt 0:00:39]} g6 {[%emt 0:01:01][%cal Oc6e5] Threatens to win with ...Ne5!} 18. Qh4 {[%emt 0:01:44]} Bg7 {[%emt 0:05:21]} (18... Qd8 $14) 19. Be3 {[%emt 0:02:14]} Qd8 {[%emt 0:02:16]} 20. Ng5 $40 {[%emt 0:08:09][%csl Gg5][%cal Rh4h7,Bf3g5,Bg5h7,Bh7f8][%mdl 160] White attacks with force. White is more active.} (20. cxb4 Qxh4 (20... Bxb2 $2 21. Ng5 $16) 21. Nxh4 Nxb4 $19) 20... h6 {[%emt 0:03:54] ...Ne5 is the strong threat.} 21. Bxg6 $1 {[%emt 0:04:28] Strongly threatening Bh7+.} Ne5 {[%emt 0:00:15]} (21... bxc3 $16 {keeps fighting.} 22. Rad1 (22. bxc3 Ne7 $16) 22... cxb2) 22. Bc2 {[%emt 0:00:20]} (22. Qxb4 hxg5 (22... Nxg6 23. Nxe6 dxe6 24. Qxb7 $15) 23. Qxb7 Nxg6 $17) (22. Bh7+ $18 Kh8 23. cxb4 (23. Qxb4 $2 hxg5 24. Qxb7 Kxh7 $19)) 22... b3 $2 {[%emt 0:07:36]} (22... hxg5 $2 23. Qh7+ Kf7 24. f4 $18 (24. cxb4 $2 Rh8 $19) (24. cxb4 $2 Rh8 $19)) (22... Rc8 $14) 23. Bb1 {[%emt 0:00:30]} (23. Bxb3 $2 hxg5 24. Qg3 (24. Bxg5 Bf6 $19) 24... Be4 $17) ({White has to play} 23. Bh7+ $18 Kh8 24. Qh3) 23... Qf6 {[%emt 0:01:24] [#]} (23... hxg5 $2 24. Qh7+ Kf7 25. f4 $18) (23... Bd5 $16 {was necessary.}) 24. Qh5 $1 $18 {[%emt 0:03:23]} Nc4 {[%emt 0:05:11][%cal Oc4e3] [#] White must now prevent ...Nxe3!} ({Not} 24... hxg5 25. Bh7+ (25. Bxg5 Qf5 $18) 25... Kh8 26. Bg6+ (26. Bxg5 Nf3+ 27. gxf3 Qxf3 $11) (26. Bxg5 Nf3+ 27. gxf3 Qxf3 $14)) (24... Bd5 25. Nh7) 25. Nh7 $1 {[%emt 0:01:48] White has a decisive advantage.} Qe5 {[%emt 0:02:42]} 26. Qxe5 {[%emt 0:00:42]} Bxe5 {[%emt 0:00:12]} 27. Nxf8 {[%emt 0:00:09] Weighted Error Value: White=0.24 (precise) /Black=0.56.  Loses game:     	---       	Black=1      Mistake:       	White=4     	Black=5      Inaccurate:     	---       	Black=1      OK:         	White=5     	Black=4      Best:        	White=4     	Black=2      Strong:       	White=3     	---} (27. Bxh6 $2 {too greedy.} Rf7 28. Nf8 (28. Ng5 $2 Rf6 $19) 28... Raxf8 29. Bxf8 Kxf8 $19 (29... Rxf8 $2 30. Re1 $19)) 1-0

[Event "ESP-ch U2000 2024"]
[Site "Albacete"]
[Date "2024.08.27"]
[Round "1.3"]
[White "Asensi Cone, Eric"]
[Black "Perez Garcia, Juan Angel"]
[Result "0-1"]
[ECO "C25"]
[WhiteElo "1841"]
[BlackElo "1979"]
[Annotator "TA"]
[PlyCount "80"]
[EventDate "2024.08.27"]
[EventType "swiss"]
[EventCountry "ESP"]
[SourceTitle "playchess.com"]
[Source "ChessBase"]
[SourceQuality "1"]
[TimeControl "5400+30"]

{[%evp 11,80,-14,4,-35,-46,-103,-47,-60,-37,-60,-55,-71,-47,-62,-54,-53,-55,-77,-67,-119,2,-35,3,-82,-64,-172,-143,-128,-143,-236,-239,-222,-227,-398,-381,-491,-496,-480,-481,-509,-469,-467,-457,-735,-504,-934,-223,-279,-267,-29997,-29998,-29998,-521,-476,-464,-1224,-1184,-29995,-29967,-6070,-6187,-6187,-6070,-4134,-314,-713,-690,-596,-581,-556,-512]} 1. e4 {[%emt 0:00:03]} e5 {[%emt 0:00:08]} 2. Nc3 {[%emt 0:00:07]} Bc5 {[%emt 0:00:34]} 3. f4 {[%emt 0:01:11]} d6 {[%emt 0:00:15]} 4. Nf3 {[%emt 0:00:27]} a6 {[%emt 0:00:24]} 5. Bc4 {[%emt 0:00:55]} Nc6 {[%emt 0:01:29]} 6. d3 {[%emt 0:01:28]} Nf6 {[%emt 0:00:24]} 7. Qe2 {[%emt 0:01:40]} Bg4 {[%emt 0:00:45] Hoping for ...Nd4.} 8. Be3 {[%emt 0:04:27] [#]} (8. fxe5 $15 dxe5 (8... Nxe5 9. Bg5 $15) 9. Be3) 8... Nd4 {[%emt 0:01:11]} (8... exf4 $1 $17 9. Bxc5 dxc5) 9. Bxd4 $15 {[%emt 0:02:11] Black is slightly better.} Bxd4 {[%emt 0:00:40]} 10. h3 {[%emt 0:02:11]} Bxf3 {[%emt 0:00:28]} 11. Qxf3 {[%emt 0:00:10]} O-O {[%emt 0:01:09]} 12. Ne2 {[%emt 0:00:39]} Bxb2 {[%emt 0:02:24]} 13. Rb1 {[%emt 0:00:08]} Ba3 {[%emt 0:00:18]} 14. Rxb7 {[%emt 0:00:52]} Bc5 {[%emt 0:00:37]} 15. g4 {[%emt 0:01:01] [#]} ({White should try} 15. fxe5 $15 dxe5 16. Rf1) 15... Rb8 {[%emt 0:05:11]} (15... Bb6 $1 $17 16. g5 Nd7 (16... Qc8 $2 17. Rxb6 Nd7 18. Rb3 $18)) 16. Rb3 {[%emt 0:04:28]} c6 {[%emt 0:01:35]} 17. g5 {[%emt 0:02:23]} (17. fxe5 $1 $11 dxe5 18. Kf1) 17... Nd7 {[%emt 0:00:13] And now ...Qa5+ would win.} 18. h4 {[%emt 0:03:23]} ({Better is} 18. Rxb8 $15 Qxb8 19. f5) 18... Nb6 {[%emt 0:01:15]} 19. Bxa6 {[%emt 0:05:38]} Ra8 {[%emt 0:00:27]} 20. Bb7 {[%emt 0:00:06]} (20. d4 $17 Bxd4 (20... exd4 21. Bd3 $15) 21. Nxd4 exd4 (21... Rxa6 22. Nxc6 Qc7 23. Nb4 $11) 22. Be2) 20... Rxa2 $19 {[%emt 0:00:30]} 21. Bxc6 {[%emt 0:02:33]} Rxc2 {[%emt 0:02:00]} 22. g6 $2 {[%emt 0:07:37]} (22. Bb5 {keeps fighting.}) 22... Qc7 {[%emt 0:00:40] White is weak on the dark squares} (22... fxg6 23. h5 $19) 23. gxh7+ {[%emt 0:19:47]} Kh8 {[%emt 0:00:20]} 24. Bb5 {[%emt 0:00:26]} Ra8 {[%emt 0:01:28]} (24... Kxh7 25. d4 Bxd4 (25... exd4 26. Bd3 $11) 26. Nxd4 exd4 27. Bd3 $19) 25. Rb1 {[%emt 0:01:20] Dodges Ra1} Raa2 {[%emt 0:03:09]} (25... Kxh7 26. Rh2 $19) 26. d4 {[%emt 0:00:32]} Bxd4 {[%emt 0:04:53]} (26... exd4 $2 27. Bd3 Rd2 28. h5 $19) 27. Bd3 {[%emt 0:00:12]} (27. fxe5 $142 Bc3+ (27... Bxe5 $2 28. O-O $19) (27... dxe5 $2 28. h5 $19) 28. Kf1 Bxe5 29. Bd3) 27... Rcb2 {[%emt 0:07:37]} 28. fxe5 {[%emt 0:03:43]} (28. Rxb2 $142 Rxb2 29. Kf1) 28... dxe5 $2 {[%emt 0:05:29]} (28... Rxb1+ 29. Bxb1 Nc4) 29. Rxb2 {[%emt 0:02:20]} Rxb2 {[%emt 0:00:42]} (29... Bxb2 30. O-O $19) 30. Nxd4 $2 {[%emt 0:00:48]} (30. h5 $19 Qe7 (30... Kxh7 31. h6 $17) 31. Kf1) 30... Qc3+ {[%emt 0:00:55]} 31. Kf1 {[%emt 0:00:43]} Qxd4 {[%emt 0:00:44]} (31... Qc1+ $142 32. Qd1 Qxd1#) 32. Be2 {[%emt 0:04:17]} Nc4 {[%emt 0:02:56] ( -> ...Nd2+)} (32... Kxh7 33. Qxf7 Nd7 (33... Qxe4 34. Qh5+ Kg8 35. Qe8+ Kh7 36. Qh5+ Kg8 37. Qe8+ Kh7 38. Qh5+ $11) 34. Qf3 $17) 33. Qd3 {[%emt 0:04:50]} (33. Kg2 $142 Nd6 (33... Kxh7 34. Qf5+ Kg8 35. Qc8+ Kh7 36. Qf5+ Kg8 37. Qc8+ Kh7 38. Qf5+ $11) 34. Re1) 33... Ne3+ {[%emt 0:01:43]} 34. Kf2 {[%emt 0:02:38]} Ng4+ {[%emt 0:01:01]} 35. Kf3 {[%emt 0:00:39]} Qf2+ {[%emt 0:00:52]} 36. Kxg4 {[%emt 0:02:01]} Rxe2 {[%emt 0:02:39]} 37. Qf3 {[%emt 0:03:13]} Kxh7 $2 {[%emt 0:00:30]} (37... f5+ 38. exf5 Qd4+ (38... Kxh7 39. Qxf2 Rxf2 40. Rc1 $11) 39. Kg3 Re3) 38. Qxf2 $2 {[%emt 0:02:20]} (38. Rf1 Qxf3+ 39. Kxf3) 38... Rxf2 {[%emt 0:00:08] Black is clearly winning.} 39. Kg3 {[%emt 0:00:58]} Rf4 {[%emt 0:00:09]} 40. Re1 {[%emt 0:00:16]} Kh6 {[%emt 0:00:20] Weighted Error Value: White=1.14/Black=0.73.  Mistake:       	White=10    	Black=2      Inaccurate:     	White=2     	Black=2      OK:         	White=8     	Black=10     Best:        	White=1     	Black=4} 0-1

[Event "ESP-ch U2000 2024"]
[Site "Albacete"]
[Date "2024.08.27"]
[Round "1.4"]
[White "Sierra Lopez, Yeray"]
[Black "Gerona Maura, Jesus"]
[Result "1-0"]
[ECO "B52"]
[WhiteElo "1972"]
[BlackElo "1839"]
[Annotator "TA"]
[PlyCount "53"]
[EventDate "2024.08.27"]
[EventType "swiss"]
[EventCountry "ESP"]
[SourceTitle "playchess.com"]
[Source "ChessBase"]
[SourceQuality "1"]
[TimeControl "5400+30"]

{[%evp 17,53,26,35,0,5,11,14,0,0,0,0,0,0,0,90,116,196,193,264,252,402,408,447,454,547,539,528,549,546,535,582,594,1406,1417,1316,1312,2758,2818]} 1. e4 {[%emt 0:00:08]} c5 {[%emt 0:00:06]} 2. Nf3 {[%emt 0:00:05]} d6 {[%emt 0:00:15]} 3. Bb5+ {[%emt 0:00:08]} Bd7 {[%emt 0:00:11]} 4. Bxd7+ {[%emt 0:00:03]} Qxd7 {[%emt 0:00:16]} 5. O-O {[%emt 0:00:14]} Nc6 {[%emt 0:00:22]} 6. c3 {[%emt 0:00:24]} g6 {[%emt 0:04:03]} 7. d4 {[%emt 0:00:41]} cxd4 {[%emt 0:00:09]} 8. cxd4 {[%emt 0:00:03]} Bg7 {[%emt 0:00:13]} 9. Nc3 {[%emt 0:01:17]} Nf6 {[%emt 0:04:25]} 10. h3 {[%emt 0:05:33]} d5 {[%emt 0:09:13]} 11. e5 {[%emt 0:04:17]} Ne4 {[%emt 0:00:09]} 12. Ne2 {[%emt 0:23:12] The position is equal.} f6 {[%emt 0:08:00]} 13. Bf4 {[%emt 0:02:35]} O-O {[%emt 0:02:50]} 14. Rc1 {[%emt 0:01:56]} g5 {[%emt 0:07:37]} 15. Bh2 {[%emt 0:07:45]} f5 {[%emt 0:11:59] [#]} (15... Rad8 $11) 16. Ne1 $1 $16 {[%emt 0:06:33]} g4 {[%emt 0:00:51] [#]} (16... Bh6 $16) 17. Bf4 $1 $18 {[%emt 0:04:42]} h6 {[%emt 0:03:38]} (17... Qe6 $142 18. f3 gxf3 19. gxf3 Nf6 20. exf6 Bxf6) 18. h4 {[%emt 0:00:50]} g3 {[%emt 0:06:15]} (18... Rad8 $142 19. f3 b5 20. fxe4 dxe4 21. Qb3+ e6) 19. f3 {[%emt 0:02:57]} ({Don't play} 19. Bxg3 Nxg3 20. fxg3 e6 $18) ({Not} 19. fxg3 Qd8 20. Nd3 Qb6 $18) (19. Nxg3 Nxg3 20. fxg3 Rac8 $18) 19... Nf2 {[%emt 0:00:21]} 20. Qd2 {[%emt 0:00:17] White is clearly winning.} Qe6 {[%emt 0:03:47]} 21. Nxg3 {[%emt 0:01:04]} Ne4 {[%emt 0:02:08]} 22. fxe4 {[%emt 0:00:10]} fxe4 {[%emt 0:00:06]} 23. Nc2 {[%emt 0:05:35][%cal Be1c2,Bc2e3,Be3f5][%mdl 32]} Qg4 {[%emt 0:00:59]} 24. Ne3 {[%emt 0:00:59]} Qxh4 {[%emt 0:00:10]} 25. Nef5 {[%emt 0:00:21]} Qg4 {[%emt 0:00:40]} 26. Bxh6 {[%emt 0:00:27]} Rf7 {[%emt 0:06:22]} 27. Bxg7 {Weighted Error Value: White=0.02 (flawless) /Black=0.48.  Mistake:       	---       	Black=4      Inaccurate:     	---       	Black=1      OK:         	White=10    	Black=4      Best:        	White=1     	Black=1      Strong:       	White=2     	---} 1-0

[Event "ESP-ch U2000 2024"]
[Site "Albacete"]
[Date "2024.08.27"]
[Round "1.5"]
[White "Roche Fraile, Carlos"]
[Black "Moreno Gutierrez, Victor Manuel"]
[Result "1/2-1/2"]
[ECO "B22"]
[WhiteElo "1837"]
[BlackElo "1971"]
[Annotator "TA"]
[PlyCount "75"]
[EventDate "2024.08.27"]
[EventType "swiss"]
[EventCountry "ESP"]
[SourceTitle "playchess.com"]
[Source "ChessBase"]
[SourceQuality "1"]
[TimeControl "5400+30"]

{[%evp 9,75,31,33,6,4,-26,-27,-17,-18,-28,-20,-35,6,-16,-18,-24,-24,-32,-25,-27,0,0,0,0,0,0,0,0,0,0,0,-15,-6,-20,-7,-21,-21,-79,-68,-68,-65,-59,-52,-68,-6,-5,0,-23,0,-20,0,-20,0,0,43,43,76,77,141,151,151,134,130,0,50,9,9,0]} 1. e4 {[%emt 0:00:15]} c5 {[%emt 0:00:06]} 2. c3 {[%emt 0:00:05]} d5 {[%emt 0:00:05]} 3. exd5 {[%emt 0:00:07]} Qxd5 {[%emt 0:00:03]} 4. Nf3 {[%emt 0:00:16]} g6 {[%emt 0:00:26]} 5. d4 {[%emt 0:00:12]} Nc6 {[%emt 0:00:16]} 6. Na3 {[%emt 0:00:46] [#] Threatens to win with Nb5.} Bg4 $1 {[%emt 0:00:44]} 7. Be3 {[%emt 0:06:04]} Bxf3 {[%emt 0:04:25]} 8. gxf3 {[%emt 0:00:21] Black has an edge.} cxd4 {[%emt 0:00:34] ...e5 is the strong threat.} 9. Nb5 {[%emt 0:01:40]} O-O-O {[%emt 0:01:10] Prevents Nc7.} 10. Nxd4 {[%emt 0:00:03]} e5 {[%emt 0:02:53]} 11. Bh3+ {[%emt 0:05:31]} f5 {[%emt 0:00:47]} 12. Nxc6 {[%emt 0:06:51]} Qxc6 {[%emt 0:00:44]} 13. Qe2 {[%emt 0:00:04]} Kb8 {[%emt 0:02:14]} 14. O-O {[%emt 0:08:42][%cal Oe3f4]} Bg7 {[%emt 0:03:58]} 15. Rfd1 {[%emt 0:02:26]} Ne7 {[%emt 0:02:40]} 16. Rxd8+ {[%emt 0:06:02]} Rxd8 {[%emt 0:01:20]} 17. Rd1 {[%emt 0:00:07]} Rxd1+ {[%emt 0:03:15]} 18. Qxd1 {[%emt 0:00:02]} Qd5 {[%emt 0:00:14]} 19. Qxd5 {[%emt 0:01:48]} Nxd5 $11 {[%emt 0:00:04][%mdl 4096] Endgame. KBB-KBN} 20. Kf1 {[%emt 0:02:07]} b6 {[%emt 0:00:36]} 21. Ke2 {[%emt 0:00:38]} Kc7 {[%emt 0:02:33]} 22. Kd3 {[%emt 0:06:55]} Bf6 {[%emt 0:02:53]} 23. c4 {[%emt 0:06:24]} (23. Bf1 $11 {keeps the balance.}) 23... Nb4+ {[%emt 0:01:04]} 24. Kc3 {[%emt 0:02:48]} Nc6 {[%emt 0:00:48]} (24... Nxa2+ $2 {loses.} 25. Kb3 $18) 25. Kd3 {[%emt 0:01:25]} Kd6 {[%emt 0:11:38]} 26. a3 {[%emt 0:03:35]} f4 {[%emt 0:06:14]} ({Black should try} 26... Nd8 $15) 27. Bd2 {[%emt 0:00:45]} Nd4 {[%emt 0:03:35]} 28. Bg2 {[%emt 0:01:18]} h5 {[%emt 0:08:12]} 29. b4 {[%emt 0:02:45]} h4 {[%emt 0:01:39][%cal Oh4h3]} 30. h3 {[%emt 0:01:49]} Bd8 {[%emt 0:05:29]} 31. Bxf4 {[%emt 0:07:10]} Ne6 {[%emt 0:01:06]} 32. Be3 {[%emt 0:01:19]} Bg5 {[%emt 0:02:39]} 33. Ke4 {[%emt 0:07:10]} Bf4 {[%emt 0:03:32]} (33... Bf6 $142) 34. Bxf4 $16 {[%emt 0:01:09]} Nxf4 {[%emt 0:04:02]} 35. Bf1 {[%emt 0:00:46][%cal Oc4c5]} Ne6 {[%emt 0:00:05] [#]} 36. Bg2 {[%emt 0:03:33]} (36. f4 $1 $16 {[%cal Rf4e5]} Nxf4 37. Kf3) 36... Ng5+ {[%emt 0:01:03]} ({Better is} 36... Nf4 $11 37. Bf1 Ne6) 37. Ke3 {[%emt 0:00:40] next f4 is good for White.} Ne6 {[%emt 0:01:19]} 38. Ke4 {[%emt 0:00:08] Weighted Error Value: White=0.15 (very precise) /Black=0.16 (very precise) .  Mistake:       	White=2     	Black=3      Inaccurate:     	White=2     	Black=4      OK:         	White=12    	Black=5      Best:        	White=3     	Black=2      Strong:       	---       	Black=1} 1/2-1/2